bitfinex-derivatives/quotes_BTCF0:USTF0_20241213
["timestamp","ask_amount","ask_price","bid_price","bid_amount"]
[1734070189356,0.12155089,99979.0,99978.0,0.61526528]
[1734070189553,0.002,99979.0,99978.0,0.61526528]
[1734070193269,0.002,99979.0,99978.0,0.85454074]
[1734070195061,0.12155089,99979.0,99978.0,0.85454074]
[1734070195972,0.002,99979.0,99978.0,0.61526528]
[1734070196469,0.002,99979.0,99978.0,0.91026903]
[1734070196764,0.002,99979.0,99978.0,0.96026703]
[1734070197768,0.002,99979.0,99978.0,1.31991665]
[1734070198374,0.002,99979.0,99978.0,0.95876705]
[1734070203972,0.002,99979.0,99978.0,0.95702931]
[1734070208779,0.002,99979.0,99978.0,0.95656786]
[1734070209673,0.002,99979.0,99978.0,1.25656786]
[1734070209875,0.002,99979.0,99978.0,0.95656786]
[1734070213685,0.002,99979.0,99978.0,0.95640842]
[1734070217276,0.002,99979.0,99978.0,1.31605804]
[1734070217681,0.002,99979.0,99978.0,1.315608]
[1734070218390,0.002,99979.0,99978.0,0.95640842]
[1734070219780,0.002,99979.0,99978.0,1.31567204]
[1734070219986,0.002,99979.0,99978.0,1.31567113]
[1734070220285,0.002,99979.0,99978.0,0.95640842]
[1734070221280,0.002,99979.0,99978.0,1.31570653]
[1734070222284,0.002,99979.0,99978.0,0.95671382]
[1734070224479,0.002,99979.0,99978.0,1.23845195]
[1734070228177,0.031,99984.0,99978.0,1.23845195]
[1734070228379,0.08992789,99994.0,99992.0,0.049991]
[1734070228579,0.08992789,99998.0,99996.0,0.049989]
[1734070228778,0.20947878,100000.0,99997.0,0.90668519]
[1734070229092,0.20947878,100000.0,99999.0,0.049988]
[1734070229273,0.20947878,100000.0,99999.0,0.38667319]
[1734070229679,0.20947878,100000.0,99999.0,0.95667319]
[1734070230178,0.08992789,100000.0,99999.0,0.95667319]
[1734070231081,0.09492789,100000.0,99999.0,0.95767319]
[1734070231884,0.09892789,100000.0,99999.0,0.95667319]
[1734070232093,8.9e-07,100000.0,99999.0,1.32656556]
[1734070232288,8.9e-07,100000.0,99999.0,0.96673479]
[1734070232588,8.9e-07,100000.0,99999.0,1.24372445]
[1734070233789,0.12105092,100020.0,100010.0,0.049982]
[1734070234094,0.12105092,100020.0,100010.0,1.24220836]
[1734070234399,0.00150003,100020.0,100010.0,0.88610612]
[1734070235092,0.00650003,100020.0,100010.0,0.88710612]
[1734070235294,0.01550003,100020.0,100010.0,1.44531324]
[1734070239285,0.01550003,100020.0,100010.0,1.40155343]
[1734070239481,0.01550003,100020.0,100010.0,1.44529802]
[1734070240086,0.01550003,100020.0,100010.0,1.40155343]
[1734070240287,0.6746083,100040.0,100010.0,1.76235343]
[1734070240589,0.049974,100030.0,100020.0,0.410774]
[1734070242095,0.058974,100030.0,100020.0,0.411774]
[1734070242996,0.091174,100030.0,100020.0,0.411774]
[1734070244191,0.091174,100030.0,100020.0,0.412774]
[1734070244593,0.122274,100030.0,100020.0,0.412774]
[1734070250204,0.122274,100030.0,100020.0,0.59221166]
[1734070252095,0.0723,100030.0,100020.0,0.59221166]
[1734070252300,0.09100055,100040.0,100030.0,0.049972]
[1734070253025,0.08107,100040.0,100030.0,0.59020966]
[1734070253201,0.08107,100040.0,100030.0,1.16020966]
[1734070253802,0.09007,100040.0,100030.0,1.16120966]
[1734070253998,0.09007,100040.0,100030.0,1.16220966]
[1734070256210,0.09007,100040.0,100030.0,1.40154343]
[1734070258202,0.09007,100040.0,100030.0,1.22210577]
[1734070260203,0.05897,100040.0,100030.0,1.22210577]
[1734070262515,0.009,100040.0,100030.0,1.77067836]
[1734070262708,0.009,100040.0,100030.0,1.80257836]
[1734070264114,0.009,100040.0,100030.0,1.80215205]
[1734070264821,0.009,100040.0,100030.0,1.85854509]
[1734070265021,0.009,100040.0,100030.0,1.61921132]
[1734070265212,0.009,100040.0,100030.0,1.92181893]
[1734070265411,0.009,100040.0,100030.0,1.04921776]
[1734070265613,0.009,100040.0,100030.0,1.40821841]
[1734070265936,0.009,100040.0,100030.0,1.97409589]
[1734070266212,0.049959,100060.0,100030.0,1.97309589]
[1734070266415,0.002,100040.0,100030.0,1.97409189]
[1734070266610,0.002,100040.0,100030.0,2.33489189]
[1734070267320,0.06016836,100060.0,100050.0,0.049962]
[1734070267520,0.06216836,100060.0,100050.0,0.58978342]
[1734070268621,0.06216836,100060.0,100050.0,0.59078342]
[1734070268915,0.06016836,100060.0,100050.0,0.59078342]
[1734070270025,0.06116836,100060.0,100050.0,0.59178342]
[1734070271422,0.06116836,100060.0,100050.0,1.16178342]
[1734070271922,0.06116836,100060.0,100050.0,0.982762]
[1734070278232,0.06116836,100060.0,100050.0,1.16178342]
[1734070283123,0.57154233,100060.0,100050.0,0.98971665]
[1734070283426,0.67148736,100060.0,100050.0,0.18102142]
[1734070285526,1.00144405,100060.0,100050.0,0.002]
[1734070285728,0.82191339,100060.0,100050.0,0.002]
[1734070285920,1.031764,100060.0,100050.0,0.002]
[1734070287631,0.049967,100040.0,100030.0,0.74902142]
[1734070287932,0.19960939,100040.0,100030.0,0.74902142]
[1734070289136,0.20060939,100040.0,100030.0,0.75002142]
[1734070289330,0.20060939,100040.0,100030.0,0.75102142]
[1734070290934,0.23270939,100040.0,100030.0,0.75102142]
[1734070291530,0.24290687,100040.0,100030.0,0.75102142]
[1734070292638,0.09326448,100040.0,100030.0,0.75102142]
[1734070293333,0.24290687,100040.0,100030.0,0.75102142]
[1734070293533,0.09326448,100040.0,100030.0,0.572]
[1734070296233,0.06116448,100040.0,100030.0,0.572]
[1734070296437,0.06116448,100040.0,100030.0,0.80099342]
[1734070296739,0.06116448,100040.0,100030.0,0.83329342]
[1734070300243,0.28071892,100040.0,100030.0,0.21332142]
[1734070306146,0.28071892,100040.0,100030.0,0.78332142]
[1734070307347,0.18075391,100040.0,100030.0,1.19409342]
[1734070307747,0.18075391,100040.0,100030.0,1.22589342]
[1734070307952,0.18075391,100040.0,100030.0,1.46458865]
[1734070310972,0.17055643,100040.0,100030.0,1.46458865]
[1734070311672,0.17055643,100040.0,100030.0,1.83385709]
[1734070312582,0.17055643,100040.0,100030.0,1.87759526]
[1734070313474,0.17055643,100040.0,100030.0,1.63890003]
[1734070314066,0.32019882,100040.0,100030.0,1.87819173]
[1734070314568,0.32019882,100040.0,100030.0,1.63890003]
[1734070315266,0.32019882,100040.0,100030.0,1.87826621]
[1734070315466,0.32019882,100040.0,100030.0,1.87826758]
[1734070315662,0.32019882,100040.0,100030.0,1.63933416]
[1734070315871,0.32019882,100040.0,100030.0,1.87873315]
[1734070316271,0.32019882,100040.0,100030.0,1.63933416]
[1734070316575,0.32019882,100040.0,100030.0,1.87872467]
[1734070317173,0.32019882,100040.0,100030.0,1.63933416]
[1734070317474,0.32019882,100040.0,100030.0,1.83499134]
[1734070317878,0.20060939,100040.0,100030.0,1.8349994]
[1734070318771,0.32049163,100040.0,100030.0,1.89150174]
[1734070318976,0.32049163,100040.0,100030.0,1.89150142]
[1734070319179,0.32049163,100040.0,100030.0,1.65210858]
[1734070322988,0.32049114,100040.0,100030.0,1.65210858]
[1734070323374,0.32049114,100040.0,100030.0,1.65136811]
[1734070324689,0.20060939,100040.0,100030.0,1.65136811]
[1734070324887,0.20060939,100040.0,100030.0,1.61956811]
[1734070325086,0.20060939,100040.0,100030.0,1.80243429]
[1734070327083,0.20060939,100040.0,100030.0,1.8589593]
[1734070328184,0.20060939,100040.0,100030.0,1.57704482]
[1734070328490,0.20060939,100040.0,100030.0,1.7776022]
[1734070328784,0.23080939,100040.0,100030.0,0.982772]
[1734070329279,0.23080939,100040.0,100030.0,1.28114104]
[1734070330283,0.23080939,100040.0,100030.0,0.982772]
[1734070330888,0.20060939,100040.0,100030.0,0.982772]
[1734070331276,0.20060939,100040.0,100030.0,1.28114104]
[1734070331987,0.20060939,100040.0,100030.0,0.982772]
[1734070332190,0.20060939,100040.0,100030.0,1.53070492]
[1734070336988,0.20060939,100040.0,100030.0,1.5872396]
[1734070338091,0.20060939,100040.0,100030.0,1.58721234]
[1734070339391,0.20060939,100040.0,100030.0,1.63095097]
[1734070341985,0.20060939,100040.0,100030.0,1.98995162]
[1734070342490,0.20060939,100040.0,100030.0,1.9904088]
[1734070342693,0.20060939,100040.0,100030.0,1.99045678]
[1734070342897,0.20060939,100040.0,100030.0,1.63145613]
[1734070343495,0.20060939,100040.0,100030.0,1.99045678]
[1734070347497,0.20060939,100040.0,100030.0,1.99060248]
[1734070348182,0.32054734,100040.0,100030.0,1.99060248]
[1734070348581,0.20060939,100040.0,100030.0,1.99060248]
[1734070349699,0.20060939,100040.0,100030.0,1.63160183]
[1734070349993,0.20060939,100040.0,100030.0,1.99060248]
[1734070350292,0.20060939,100040.0,100030.0,1.63160183]
[1734070350892,0.20060939,100040.0,100030.0,1.99060248]
[1734070351786,0.32054485,100040.0,100030.0,1.99060248]
[1734070351992,0.20060939,100040.0,100030.0,2.02110248]
[1734070352185,0.32054313,100040.0,100030.0,2.02110248]
[1734070356497,0.32054313,100040.0,100030.0,1.6183632]
[1734070357122,0.32054313,100040.0,100030.0,1.61777405]
[1734070357998,0.20060939,100040.0,100030.0,1.61777405]
[1734070358193,0.20060939,100040.0,100030.0,1.58727405]
[1734070358391,0.23390939,100040.0,100030.0,1.58727405]
[1734070361685,0.23390939,100040.0,100030.0,1.58763029]
[1734070366502,0.41348025,100040.0,100030.0,1.63180726]
[1734070369299,0.23390939,100040.0,100030.0,1.63180726]
[1734070373914,0.41348025,100040.0,100030.0,1.87119243]
[1734070375707,0.41348025,100040.0,100030.0,1.871506]
[1734070377412,0.41348025,100040.0,100030.0,1.821534]
[1734070377714,0.41348025,100040.0,100030.0,1.460734]
[1734070377904,0.41348025,100040.0,100030.0,1.41699581]
[1734070378106,0.41348025,100040.0,100030.0,1.10975421]
[1734070379002,0.72460287,100040.0,100030.0,0.42091189]
[1734070384118,0.51362996,100040.0,100030.0,0.42091189]
[1734070385810,0.87442996,100040.0,100030.0,0.42091189]
[1734070386205,0.36380287,100040.0,100030.0,0.42091189]
[1734070386509,0.51362189,100040.0,100030.0,0.42091189]
[1734070387210,0.87442189,100040.0,100030.0,0.42091189]
[1734070387416,0.51362189,100040.0,100030.0,0.42091189]
[1734070388206,0.87442189,100040.0,100030.0,0.42091189]
[1734070390316,0.87442189,100040.0,100030.0,0.18152672]
[1734070390618,1.02460287,100040.0,100030.0,0.18152672]
[1734070390913,0.049972,100030.0,100020.0,0.17952672]
[1734070391115,0.70245583,100030.0,100020.0,0.17952672]
[1734070391415,0.049977,100020.0,100010.0,0.45151189]
[1734070391616,0.31956066,100020.0,100010.0,0.45151189]
[1734070393512,0.31956066,100020.0,100010.0,0.45951189]
[1734070393920,0.41954566,100020.0,100010.0,0.42691189]
[1734070394115,0.81064566,100020.0,100010.0,0.42691189]
[1734070394312,0.81064566,100020.0,100010.0,0.008]
[1734070394518,0.6908307,100020.0,100010.0,0.008]
[1734070394711,0.44975185,100020.0,100010.0,0.18752672]
[1734070395220,0.45983942,100020.0,100010.0,0.18752672]
[1734070395909,0.82063942,100020.0,100010.0,0.18752672]
[1734070396109,0.82063942,100020.0,100010.0,0.008]
[1734070396110,0.34011827,100020.0,100010.0,0.008]
[1734070396307,0.45981277,100020.0,100010.0,0.008]
[1734070396511,0.31004407,100020.0,100010.0,0.18752672]
[1734070397316,0.39978512,100020.0,100010.0,0.18752672]
[1734070397519,0.31004407,100020.0,100010.0,0.18752672]
[1734070397720,0.45981277,100020.0,100010.0,0.008]
[1734070398424,0.31004407,100020.0,100010.0,0.008]
[1734070398724,0.45981277,100020.0,100010.0,0.008]
[1734070399325,0.31004407,100020.0,100010.0,0.008]
[1734070400117,0.45981277,100020.0,100010.0,0.008]
[1734070400423,0.70091827,100020.0,100010.0,0.008]
[1734070401418,0.82055481,100020.0,100010.0,0.008]
[1734070401613,0.70091827,100020.0,100010.0,0.008]
[1734070402417,0.82053874,100020.0,100010.0,0.008]
[1734070402615,0.82053874,100020.0,100010.0,0.578]
[1734070406724,0.70091827,100020.0,100010.0,0.578]
[1734070414427,0.88070139,100020.0,100010.0,0.578]
[1734070416624,0.88070139,100020.0,100010.0,0.008]
[1734070417137,0.51990139,100020.0,100010.0,0.578]
[1734070417329,0.34011827,100020.0,100010.0,0.75752672]
[1734070417923,0.51990139,100020.0,100010.0,0.75752672]
[1734070420334,0.37013269,100020.0,100010.0,0.99691189]
[1734070425142,0.14791918,100020.0,100010.0,1.63977544]
[1734070425343,0.15997636,100030.0,100010.0,1.79260332]
[1734070425542,0.08994357,100030.0,100020.0,0.76999459]
[1734070425745,0.08994357,100030.0,100020.0,1.99171526]
[1734070426547,0.049968,100040.0,100030.0,0.049972]
[1734070426548,0.13991157,100040.0,100030.0,0.049972]
[1734070426743,0.13991157,100040.0,100030.0,1.01211759]
[1734070427447,0.13991157,100040.0,100030.0,0.89240835]
[1734070428252,0.14191157,100040.0,100030.0,0.89340835]
[1734070428546,0.14191157,100040.0,100030.0,0.92640835]
[1734070428851,0.14491157,100040.0,100030.0,0.92740835]
[1734070430452,0.14491157,100040.0,100030.0,0.68818809]
[1734070430750,0.14491157,100040.0,100030.0,0.69815725]
[1734070431343,0.054968,100040.0,100030.0,0.69815725]
[1734070436453,0.054968,100040.0,100030.0,0.51884116]
[1734070436753,0.054968,100040.0,100030.0,1.08884116]
[1734070438555,0.054968,100040.0,100030.0,0.51884116]
[1734070438961,0.054968,100040.0,100030.0,1.08884116]
[1734070439384,0.054968,100040.0,100030.0,1.015372]
[1734070439657,0.054968,100040.0,100030.0,0.412772]
[1734070443455,0.054968,100040.0,100030.0,0.59208809]
[1734070446044,0.14491157,100040.0,100030.0,0.59208809]
[1734070446250,0.054968,100040.0,100030.0,0.59208809]
[1734070446559,0.14491157,100040.0,100030.0,0.59208809]
[1734070449456,0.14491157,100040.0,100030.0,0.83130835]
[1734070449651,0.14491157,100040.0,100030.0,0.59208809]
[1734070450049,0.14491157,100040.0,100030.0,0.83130835]
[1734070452352,0.09494357,100040.0,100030.0,0.83130835]
[1734070452758,0.09494357,100040.0,100030.0,0.65199226]
[1734070453153,0.09494357,100040.0,100030.0,0.95101759]
[1734070453352,0.09494357,100040.0,100030.0,1.24573911]
[1734070454369,0.005,100040.0,100030.0,1.36573644]
[1734070454752,0.005,100040.0,100030.0,1.36574429]
[1734070455156,0.15485914,100040.0,100030.0,1.36574429]
[1734070456372,0.09495317,100040.0,100030.0,1.43039813]
[1734070456664,0.09495317,100040.0,100030.0,2.05681936]
[1734070459060,0.09495317,100040.0,100030.0,1.69760177]
[1734070459262,0.09495317,100040.0,100030.0,2.05246107]
[1734070459563,0.09495317,100040.0,100030.0,1.69341563]
[1734070459871,0.005,100040.0,100030.0,1.69341563]
[1734070460269,0.09495317,100040.0,100030.0,1.35277862]
[1734070461368,0.005,100040.0,100030.0,1.65189069]
[1734070461571,0.005,100040.0,100030.0,1.65196755]
[1734070462576,0.005,100040.0,100030.0,1.59546946]
[1734070462871,0.09484832,100040.0,100030.0,1.65196217]
[1734070463074,0.005,100040.0,100030.0,1.65196217]
[1734070463267,0.005,100040.0,100030.0,1.59546946]
[1734070463472,0.09484368,100040.0,100030.0,1.59546946]
[1734070463767,0.005,100040.0,100030.0,1.59546946]
[1734070464571,0.0948411,100040.0,100030.0,1.59546946]
[1734070465774,0.0948411,100040.0,100030.0,2.05245173]
[1734070465970,0.005,100040.0,100030.0,1.6956688]
[1734070466278,0.005,100040.0,100030.0,1.59544457]
[1734070468972,0.005,100040.0,100030.0,1.95712589]
[1734070469372,0.09484273,100040.0,100030.0,2.01362094]
[1734070469872,0.09484273,100040.0,100030.0,2.41632758]
[1734070470573,0.14480973,100040.0,100030.0,2.35182758]
[1734070472774,0.14480973,100040.0,100030.0,1.01208571]
[1734070472975,0.054967,100040.0,100030.0,0.91185389]
[1734070473178,0.15493201,100040.0,100030.0,0.91185389]
[1734070473471,0.15493201,100040.0,100030.0,1.15120128]
[1734070473672,0.15493201,100040.0,100030.0,1.20770386]
[1734070473871,0.30479115,100040.0,100030.0,1.15120128]
[1734070474189,0.15493201,100040.0,100030.0,1.20770416]
[1734070474486,0.30479115,100040.0,100030.0,1.15120128]
[1734070475178,0.15493201,100040.0,100030.0,1.15120128]
[1734070475479,0.30479115,100040.0,100030.0,1.15120128]
[1734070476389,0.30479115,100040.0,100030.0,0.78167747]
[1734070478192,0.48457427,100040.0,100030.0,0.18153008]
[1734070482288,0.30479115,100040.0,100030.0,0.18153008]
[1734070483877,0.32495497,100040.0,100030.0,0.18153008]
[1734070484483,0.32495497,100040.0,100030.0,0.002]
[1734070492290,0.32495497,100040.0,100030.0,0.18153008]
[1734070492689,0.32495497,100040.0,100030.0,0.002]
[1734070493395,0.32495497,100040.0,100030.0,0.18153008]
[1734070494897,0.45091493,100040.0,100030.0,0.18153008]
[1734070495991,0.30479115,100040.0,100030.0,0.59230208]
[1734070496192,0.30479115,100040.0,100030.0,0.89462945]
[1734070496193,0.32457396,100040.0,100030.0,0.89462945]
[1734070496399,0.27460696,100040.0,100030.0,0.95832945]
[1734070496601,0.2145561,100040.0,100030.0,0.95832945]
[1734070496899,0.27460696,100040.0,100030.0,0.95832945]
[1734070497103,0.1877278,100040.0,100030.0,0.71581939]
[1734070497298,0.12474782,100040.0,100030.0,0.71581939]
[1734070497805,0.17471482,100040.0,100030.0,1.28581939]
[1734070498802,0.09482089,100040.0,100030.0,1.71597707]
[1734070498992,0.09482089,100040.0,100030.0,2.07494694]
[1734070499196,0.09482089,100040.0,100030.0,2.11868519]
[1734070500499,0.09482089,100040.0,100030.0,2.12887456]
[1734070500692,0.09482089,100040.0,100030.0,2.12728889]
[1734070504512,0.09482089,100040.0,100030.0,2.02040442]
[1734070504702,0.15780087,100040.0,100030.0,1.72441453]
[1734070505209,0.15780087,100040.0,100030.0,1.76814797]
[1734070505507,0.15780087,100040.0,100030.0,1.72441453]
[1734070505698,0.09482089,100040.0,100030.0,1.72441453]
[1734070508501,0.005,100040.0,100030.0,1.72441453]
[1734070508695,0.005,100040.0,100030.0,1.72429769]
[1734070511808,0.005,100040.0,100030.0,1.76803116]
[1734070512899,0.005,100040.0,100030.0,2.00707384]
[1734070513706,0.09482089,100040.0,100030.0,2.00707384]
[1734070515213,0.005,100040.0,100030.0,2.00707384]
[1734070515709,0.09482089,100040.0,100030.0,2.00707384]
[1734070516615,0.20776787,100040.0,100030.0,1.93390449]
[1734070516811,0.20776787,100040.0,100030.0,1.87020449]
[1734070517204,0.20776787,100040.0,100030.0,1.81374533]
[1734070517610,0.20776787,100040.0,100030.0,1.93316883]
[1734070518115,0.32751569,100040.0,100030.0,1.93316883]
[1734070518306,0.32751569,100040.0,100030.0,1.83299184]
[1734070521922,0.32751569,100040.0,100030.0,1.77001186]
[1734070522326,0.32751569,100040.0,100030.0,1.53096918]
[1734070524215,0.32751569,100040.0,100030.0,1.5874352]
[1734070524419,0.32751569,100040.0,100030.0,1.58742803]
[1734070525024,0.32751569,100040.0,100030.0,1.63116415]
[1734070525322,0.32751569,100040.0,100030.0,1.99013402]
[1734070527226,0.2376948,100040.0,100030.0,1.99013402]
[1734070527911,0.17471482,100040.0,100030.0,1.99013402]
[1734070528118,0.32457396,100040.0,100030.0,1.99013402]
[1734070528415,0.32457396,100040.0,100030.0,1.99172612]
[1734070529222,0.17471482,100040.0,100030.0,1.99172612]
[1734070529522,0.32457396,100040.0,100030.0,1.99172612]
[1734070530511,0.38755394,100040.0,100030.0,1.99172612]
[1734070530916,0.2376948,100040.0,100030.0,1.99172612]
[1734070533130,0.2376948,100040.0,100030.0,1.99178335]
[1734070534015,0.17471482,100040.0,100030.0,1.99178335]
[1734070535221,0.17471482,100040.0,100030.0,1.58907736]
[1734070535623,0.2376948,100040.0,100030.0,1.58907736]
[1734070537529,0.2376948,100040.0,100030.0,1.58964209]
[1734070538025,0.30067478,100040.0,100030.0,1.17887009]
[1734070538228,0.3307861,100040.0,100030.0,1.22260664]
[1734070538419,0.3307861,100040.0,100030.0,1.17887009]
[1734070539015,0.51056922,100040.0,100030.0,1.41836862]
[1734070539419,0.3307861,100040.0,100030.0,1.17887009]
[1734070539627,0.3307861,100040.0,100030.0,1.41834921]
[1734070540226,0.51056922,100040.0,100030.0,1.41834921]
[1734070540433,0.36071008,100040.0,100030.0,0.42112637]
[1734070540730,0.51055545,100040.0,100030.0,0.42112637]
[1734070541030,0.51055545,100040.0,100030.0,0.99112637]
[1734070542722,0.51055545,100040.0,100030.0,0.42112637]
[1734070544333,0.61052046,100040.0,100030.0,0.42112637]
[1734070545018,0.82147509,100040.0,100030.0,0.18164725]
[1734070548430,0.97120776,100040.0,100030.0,0.18164725]
[1734070549537,0.97120776,100040.0,100030.0,0.002]
[1734070552839,0.82147509,100040.0,100030.0,0.002]
[1734070553136,0.97116908,100040.0,100030.0,0.002]
[1734070554136,0.99113493,100040.0,100030.0,0.002]
[1734070555540,0.86517497,100040.0,100030.0,0.002]
[1734070555730,0.99113493,100040.0,100030.0,0.002]
[1734070557324,0.99113493,100040.0,100030.0,0.18164725]
[1734070557932,0.99113493,100040.0,100030.0,0.002]
[1734070562645,0.99113493,100040.0,100030.0,0.18164725]
[1734070564569,0.84144094,100040.0,100030.0,0.18164725]
[1734070564849,0.99119532,100040.0,100030.0,0.18164725]
[1734070565440,0.84144094,100040.0,100030.0,0.18164725]
[1734070567350,0.82147509,100040.0,100030.0,0.18164725]
[1734070569149,0.84097644,100040.0,100030.0,0.18164725]
[1734070569548,0.84097644,100040.0,100030.0,0.42112637]
[1734070570236,0.84097644,100040.0,100030.0,0.18164725]
[1734070570434,0.84097644,100040.0,100030.0,0.42112637]
[1734070570649,0.84097644,100040.0,100030.0,0.18164725]
[1734070571549,0.84097644,100040.0,100030.0,0.42112637]
[1734070573548,0.66119332,100040.0,100030.0,0.42112637]
[1734070576356,0.53523336,100040.0,100030.0,0.42112637]
[1734070576556,0.66119332,100040.0,100030.0,0.42112637]
[1734070580976,0.48034928,100040.0,100030.0,0.42112637]
[1734070586157,0.33488797,100040.0,100030.0,0.47109837]
[1734070586355,0.18495596,100040.0,100030.0,1.322377]
[1734070586660,0.33777953,100040.0,100030.0,1.0829179]
[1734070587551,0.33777953,100040.0,100030.0,1.32236888]
[1734070587858,0.38774653,100040.0,100030.0,1.93610846]
[1734070592561,0.39065717,100040.0,100030.0,1.93610846]
[1734070592762,0.45072651,100040.0,100030.0,0.89475478]
[1734070592962,0.38774653,100040.0,100030.0,0.89475478]
[1734070593260,0.38774653,100040.0,100030.0,1.46475478]
[1734070593665,0.45072651,100040.0,100030.0,0.71522298]
[1734070593867,0.55069152,100040.0,100030.0,0.65222298]
[1734070594060,0.55069152,100040.0,100030.0,0.83175166]
[1734070595657,0.42473156,100040.0,100030.0,0.83175166]
[1734070595858,0.48771154,100040.0,100030.0,0.83175166]
[1734070596760,0.38774653,100040.0,100030.0,0.83175166]
[1734070597661,0.38774653,100040.0,100030.0,1.2592026]
[1734070597970,0.32767432,100040.0,100030.0,1.2592026]
[1734070598355,0.32767432,100040.0,100030.0,1.36564141]
[1734070599666,0.32767432,100040.0,100030.0,1.93564141]
[1734070604476,0.23783389,100040.0,100030.0,1.93564141]
[1734070605665,0.38774653,100040.0,100030.0,1.93564141]
[1734070605868,0.45072651,100040.0,100030.0,1.93564141]
[1734070606969,0.45072651,100040.0,100030.0,1.87294141]
[1734070609675,0.45072651,100040.0,100030.0,1.81643889]
[1734070611681,0.45072651,100040.0,100030.0,1.87294007]
[1734070612483,0.3308396,100040.0,100030.0,1.87294007]
[1734070614682,0.51079556,100040.0,100030.0,1.87294007]
[1734070614983,0.3308396,100040.0,100030.0,1.87294007]
[1734070615586,0.51079556,100040.0,100030.0,1.87294007]
[1734070615984,0.3308396,100040.0,100030.0,1.63348909]
[1734070616285,0.82164793,100040.0,100030.0,0.42130606]
[1734070616586,0.82164793,100040.0,100030.0,0.18171258]
[1734070616785,0.64169197,100040.0,100030.0,0.22545216]
[1734070616991,0.70467195,100040.0,100030.0,0.18171258]
[1734070617282,0.91452256,100040.0,100030.0,0.002]
[1734070617484,1.21452256,100040.0,100030.0,0.002]
[1734070617873,1.21452256,100040.0,100020.0,0.17971258]
[1734070618073,0.049977,100020.0,100010.0,0.41930606]
[1734070618286,0.50557916,100020.0,100010.0,0.41930606]
[1734070618498,0.32577641,100020.0,100010.0,0.41930606]
[1734070619083,0.19981645,100020.0,100010.0,0.41930606]
[1734070619289,0.44557039,100020.0,100010.0,0.41930606]
[1734070619587,0.44557039,100020.0,100010.0,0.17971258]
[1734070619588,0.44551979,100020.0,100010.0,0.17971258]
[1734070619773,0.44551979,100020.0,100010.0,0.18771258]
[1734070620378,0.80631979,100020.0,100010.0,0.18771258]
[1734070620680,0.4455185,100020.0,100010.0,0.18771258]
[1734070620985,0.31955854,100020.0,100010.0,0.54026804]
[1734070621284,0.23269907,100020.0,100010.0,0.54198806]
[1734070621489,0.32248145,100020.0,100010.0,0.54198806]
[1734070621795,0.23269907,100020.0,100010.0,0.54198806]
[1734070622379,0.32246213,100020.0,100010.0,0.30239458]
[1734070622777,0.32246213,100020.0,100010.0,0.66319458]
[1734070622987,0.32246213,100020.0,100010.0,0.90278806]
[1734070623583,0.25948215,100020.0,100010.0,0.90278806]
[1734070623790,0.20272004,100020.0,100010.0,0.90278806]
[1734070623983,0.20272004,100020.0,100010.0,1.47278806]
[1734070627789,0.26570002,100020.0,100010.0,1.40808806]
[1734070630292,0.20272004,100020.0,100010.0,1.40808806]
[1734070630591,0.26570002,100020.0,100010.0,1.40808806]
[1734070631692,0.26570002,100020.0,100010.0,0.83808806]
[1734070632389,0.38544211,100020.0,100010.0,0.18771258]
[1734070634079,0.38544211,100020.0,100010.0,0.008]
[1734070634789,0.38544211,100020.0,100010.0,0.18771258]
[1734070636092,0.48542711,100020.0,100010.0,0.18771258]
[1734070636691,0.48542711,100020.0,100010.0,0.008]
[1734070636692,0.9063035,100020.0,100010.0,0.008]
[1734070637890,0.84954139,100020.0,100010.0,0.008]
[1734070638286,1.02934414,100020.0,100010.0,0.008]
[1734070638486,0.87950469,100020.0,100010.0,0.008]
[1734070641301,0.049987,100000.0,99997.0,0.3608]
[1734070641589,0.049987,100000.0,99992.0,0.17971258]
[1734070641590,0.049991,99993.0,99992.0,0.17971258]
[1734070642590,0.049991,99993.0,99991.0,0.17971258]
[1734070643091,0.049991,99993.0,99992.0,0.17971258]
[1734070644691,0.050991,99993.0,99992.0,0.18871258]
[1734070645292,0.050991,99993.0,99992.0,0.012]
[1734070645683,0.049991,99993.0,99992.0,0.003]
[1734070645888,0.053991,99993.0,99992.0,0.17971258]
[1734070646097,0.056991,99993.0,99991.0,0.17971258]
[1734070646296,0.049991,99992.0,99991.0,0.17971258]
[1734070648095,0.050991,99992.0,99991.0,0.18671258]
[1734070648511,0.049992,99991.0,99990.0,0.74979608]
[1734070648907,0.049992,99991.0,99990.0,0.5700835]
[1734070649607,0.049992,99991.0,99990.0,0.5730835]
[1734070649806,0.051992,99991.0,99990.0,0.5730835]
[1734070650398,0.051992,99991.0,99990.0,0.75246466]
[1734070651195,0.051992,99991.0,99990.0,0.5730835]
[1734070651402,0.049992,99991.0,99990.0,0.5700835]
[1734070651592,0.051992,99991.0,99990.0,0.5730835]
[1734070652498,0.049992,99991.0,99990.0,0.5730835]
[1734070652712,0.051992,99991.0,99990.0,0.5730835]
[1734070653210,0.051992,99991.0,99990.0,0.75244841]
[1734070655414,0.051992,99991.0,99990.0,0.5730835]
[1734070656116,0.049992,99991.0,99990.0,0.5730835]
[1734070656301,0.051992,99991.0,99990.0,0.5730835]
[1734070657106,0.051992,99991.0,99990.0,8.35e-05]
[1734070657294,0.051992,99991.0,99990.0,0.0030835]
[1734070659506,0.051992,99991.0,99990.0,0.60347698]
[1734070660412,0.051992,99991.0,99990.0,0.64723458]
[1734070661407,0.051992,99991.0,99990.0,0.4076411]
[1734070665103,0.049993,99988.0,99965.0,0.35949743]
[1734070665414,0.4020095,99991.0,99950.0,0.3595381]
[1734070665415,0.3608,99966.0,99950.0,0.3595381]
[1734070665607,0.050012,99951.0,99950.0,0.0641]
[1734070666206,0.05009971,99950.0,99948.0,0.08060838]
[1734070666404,8.771e-05,99950.0,99948.0,0.08060838]
[1734070666607,0.3608,99956.0,99949.0,0.25492212]
[1734070666608,0.11956441,99952.0,99949.0,0.25492212]
[1734070666815,0.08967882,99952.0,99948.0,0.08060838]
[1734070667113,0.08967882,99953.0,99951.0,0.25492212]
[1734070667416,0.051012,99950.0,99948.0,0.08660838]
[1734070667709,0.051012,99950.0,99949.0,0.25492212]
[1734070668013,0.050016,99943.0,99942.0,0.03]
[1734070668205,0.050017,99940.0,99933.0,0.3608]
[1734070668511,0.050017,99940.0,99934.0,0.08060838]
[1734070668812,0.050017,99940.0,99939.0,0.25492212]
[1734070670211,0.051017,99940.0,99939.0,0.26292212]
[1734070670607,0.050017,99940.0,99939.0,0.25492212]
[1734070670807,0.051017,99940.0,99939.0,0.26292212]
[1734070672105,0.001,99940.0,99939.0,0.26292212]
[1734070672707,0.001,99940.0,99939.0,0.83292212]
[1734070675215,0.08964269,99953.0,99939.0,0.83292212]
[1734070675408,0.3608,99956.0,99952.0,0.25492212]